bitfinex-derivatives/quotes_SOLF0:USTF0_20240912
["timestamp","ask_amount","ask_price","bid_price","bid_amount"]
[1726171983127,11.34,135.27,135.24,6.34981102]
[1726171983434,11.34,135.26,135.25,3.327]
[1726171991146,3.3266,135.28,135.25,3.327]
[1726171991340,11.34,135.26,135.25,3.327]
[1726171992042,11.34,135.26,135.24,4.6282]
[1726171992362,11.34,135.25,135.24,4.6282]
[1726171993242,11.34,135.25,135.24,9.67729331]
[1726171995048,3.3266,135.28,135.24,9.67729331]
[1726171995248,11.34,135.26,135.24,4.6282]
[1726171995651,11.34,135.27,135.25,3.3273]
[1726171996962,11.34,135.27,135.24,1.3008]
[1726171997348,3.6993493,135.3,135.24,1.3008]
[1726171997552,11.34,135.26,135.24,1.3008]
[1726171998152,11.34,135.26,135.25,3.3271]
[1726171999565,3.3266,135.28,135.25,3.3271]
[1726171999754,11.34,135.26,135.25,3.3271]
[1726172000448,11.34,135.26,135.24,4.6282]
[1726172001166,11.34,135.25,135.23,4.7378]
[1726172001349,11.34,135.24,135.18,10.0947]
[1726172001554,11.34,135.24,135.19,23.7896935]
[1726172001754,11.34,135.24,135.21,3.3281]
[1726172001955,11.34,135.24,135.22,5.0496935]
[1726172002257,11.34,135.24,135.21,3.3281]
[1726172003058,11.34,135.24,135.22,5.04978033]
[1726172003352,11.34,135.24,135.21,3.3281]
[1726172003765,11.34,135.24,135.22,5.04977817]
[1726172003968,3.63454222,135.29,135.21,11.34]
[1726172004164,3.63454222,135.29,135.23,11.34]
[1726172004473,11.34,135.28,135.24,5.04911388]
[1726172004674,11.34,135.28,135.23,11.34]
[1726172004862,11.34,135.28,135.24,5.04910922]
[1726172005056,11.34,135.28,135.23,11.34]
[1726172005266,14.6666,135.28,135.24,8.37639686]
[1726172005464,3.63454222,135.29,135.23,11.34]
[1726172005663,11.34,135.28,135.25,3.3273]
[1726172005865,11.34,135.27,135.25,3.3273]
[1726172006473,3.3266,135.28,135.25,3.3273]
[1726172006774,11.34,135.26,135.25,3.3273]
[1726172009077,3.3268,135.27,135.25,3.3273]
[1726172009280,11.34,135.26,135.25,3.3273]
[1726172010173,3.3267,135.28,135.25,3.3273]
[1726172010380,11.34,135.26,135.25,3.3273]
[1726172011783,3.3267,135.28,135.25,3.3273]
[1726172012076,11.34,135.26,135.25,3.3273]
[1726172014481,3.3267,135.28,135.25,3.3273]
[1726172014680,11.34,135.27,135.25,3.3273]
[1726172016398,3.3267,135.28,135.25,3.3273]
[1726172016586,11.34,135.27,135.26,3.327]
[1726172017786,11.34,135.27,135.25,3.3272]
[1726172019486,3.3268,135.27,135.25,3.3272]
[1726172019690,11.34,135.26,135.25,3.3272]
[1726172021489,159.5716507,135.3,135.24,3.3274]
[1726172021682,11.34,135.26,135.24,3.3274]
[1726172021882,11.34,135.26,135.22,2.7195]
[1726172022385,11.34,135.26,135.25,3.3273]
[1726172022686,3.3267,135.28,135.25,3.3273]
[1726172022982,159.5716507,135.3,135.22,2.7195]
[1726172022983,11.34,135.26,135.22,2.7195]
[1726172023191,159.5716507,135.3,135.22,2.7195]
[1726172023385,11.34,135.25,135.22,2.7195]
[1726172023584,11.34,135.25,135.23,3.3276]
[1726172024494,11.34,135.24,135.22,2.7195]
[1726172025591,11.34,135.24,135.22,6.0474]
[1726172026189,11.34,135.24,135.21,3.3282]
[1726172026397,181.7716507,135.3,135.21,3.3282]
[1726172026593,11.34,135.22,135.18,8.6978]
[1726172026792,11.34,135.21,135.18,1.2978]
[1726172027290,11.34,135.21,135.19,3.3286]
[1726172027499,11.34,135.21,135.19,8.37904146]
[1726172027689,11.34,135.21,135.18,1.2978]
[1726172027890,11.34,135.21,135.19,5.05039835]
[1726172028101,11.34,135.21,135.16,2.7206]
[1726172028297,3.73973818,135.23,135.17,5.05042831]
[1726172028605,11.34,135.18,135.12,15.5007]
[1726172028897,11.34,135.2,135.17,3.3292]
[1726172029094,11.34,135.2,135.15,11.34]
[1726172029288,11.34,135.2,135.16,7.82517057]
[1726172029489,11.34,135.2,135.17,5.05087057]
[1726172029786,11.34,135.2,135.18,3.3289]
[1726172030591,3.72438789,135.22,135.16,2.7743]
[1726172030791,11.34,135.19,135.17,5.05089815]
[1726172030997,11.34,135.19,135.17,3.3292]
[1726172035204,7.04730088,135.22,135.18,3.329]
[1726172035404,11.34,135.21,135.18,3.329]
[1726172036398,11.34,135.21,135.17,11.34]
[1726172036590,3.71920088,135.22,135.19,3.3287]
[1726172036799,11.34,135.22,135.19,3.3287]
[1726172037295,3.3275,135.25,135.2,3.3284]
[1726172037497,11.34,135.23,135.2,3.3284]
[1726172037801,15.05818585,135.23,135.2,3.3284]
[1726172037999,15.05818585,135.23,135.21,3.3282]
[1726172038199,15.05818585,135.23,135.18,11.34]
[1726172038402,15.05818585,135.23,135.19,3.3286]
[1726172038403,11.34,135.21,135.19,3.3286]
[1726172040291,11.34,135.21,135.18,3.3289]
[1726172040292,11.34,135.2,135.18,3.3289]
[1726172040491,11.34,135.19,135.18,3.3289]
[1726172042306,11.34,135.19,135.17,3.3291]
[1726172043002,3.3283,135.21,135.17,3.3291]
[1726172043209,11.34,135.19,135.17,3.3291]
[1726172045511,3.3284,135.21,135.17,3.3291]
[1726172045804,11.34,135.19,135.17,3.3291]
[1726172046195,3.3284,135.21,135.18,3.329]
[1726172046394,11.34,135.19,135.18,3.329]
[1726172046595,11.34,135.2,135.18,3.329]
[1726172047307,11.34,135.2,135.19,3.3288]
[1726172047905,11.34,135.21,135.2,3.3285]
[1726172048212,11.34,135.21,135.17,11.34]
[1726172049312,11.34,135.21,135.19,3.3286]
[1726172050715,11.34,135.21,135.17,11.34]
[1726172050716,11.34,135.21,135.2,3.3285]
[1726172051609,11.34,135.21,135.19,3.3287]
[1726172056522,7.04608585,135.23,135.19,3.3287]
[1726172056720,15.05818585,135.23,135.18,11.34]
[1726172057117,15.05818585,135.23,135.2,3.3283]
[1726172058121,18.38608585,135.23,135.2,3.3283]
[1726172058321,11.34,135.21,135.2,3.3283]
[1726172058724,11.34,135.21,135.19,3.3286]
[1726172059209,11.34,135.21,135.2,3.3285]
[1726172059415,11.34,135.21,135.16,2.7743]
[1726172060220,11.34,135.21,135.19,3.3287]
[1726172061320,11.34,135.2,135.19,3.3287]
[1726172062326,14.6685,135.2,135.17,3.3292]
[1726172062525,11.34,135.18,135.17,3.3292]
[1726172064729,14.6692,135.18,135.12,11.4402]
[1726172065034,11.34,135.15,135.12,4.0402]
[1726172065839,11.34,135.15,135.13,3.3301]
[1726172066334,11.34,135.15,135.13,3.3302]
[1726172067725,11.34,135.15,135.14,3.33]
[1726172070436,3.3291,135.18,135.14,3.33]
[1726172070638,11.34,135.15,135.14,3.33]
[1726172083742,11.34,135.15,135.12,4.0402]
[1726172083945,3.62492599,135.16,135.12,4.0402]
[1726172083946,6.95442599,135.16,135.13,3.3302]
[1726172084145,3.3295,135.16,135.13,3.3302]
[1726172084746,3.33,135.15,135.11,3.3306]
[1726172086640,11.34,135.12,135.11,3.3306]
[1726172087851,3.33,135.15,135.11,3.3306]
[1726172088042,11.34,135.12,135.11,3.3306]
[1726172091053,7.03028448,135.16,135.09,7.4]
[1726172091354,3.3295,135.16,135.13,3.3301]
[1726172091742,7.10994266,135.16,135.13,3.3301]
[1726172093949,11.34,135.14,135.13,3.3301]
[1726172095647,11.34,135.14,135.1,2.7323]
[1726172095844,11.34,135.12,135.1,2.7323]
[1726172097852,11.34,135.12,135.11,3.3307]
[1726172098965,3.3298,135.15,135.12,3.3305]
[1726172099260,11.34,135.13,135.12,3.3305]
[1726172100862,11.34,135.14,135.13,3.3302]
[1726172101060,155.97082465,135.2,135.1,14.0723]
[1726172101366,11.34,135.17,135.13,11.34]
[1726172101965,11.34,135.15,135.14,3.3299]
[1726172102267,11.34,135.15,135.11,7.4]
[1726172102465,155.97082465,135.2,135.12,3.3304]
[1726172102466,11.34,135.13,135.12,3.3304]
[1726172104555,11.34,135.14,135.12,3.3304]
[1726172104760,11.34,135.14,135.13,3.3302]
[1726172111272,11.34,135.14,135.12,3.3304]
[1726172111563,7.10439277,135.16,135.11,7.4]
[1726172111564,11.34,135.13,135.11,7.4]
[1726172111960,11.34,135.13,135.12,3.3303]
[1726172116058,11.34,135.13,135.11,3.3306]
[1726172116460,11.34,135.13,135.1,2.7323]
[1726172116660,11.34,135.13,135.11,3.3307]
[1726172117269,11.34,135.12,135.11,3.3307]
[1726172123474,11.34,135.12,135.1,2.7323]
[1726172123674,11.34,135.11,135.1,2.7323]
[1726172124176,11.34,135.11,135.07,7.4]
[1726172124378,11.34,135.1,135.07,7.4]
[1726172124569,3.77479277,135.16,135.07,7.4]
[1726172124876,11.34,135.1,135.07,7.4]
[1726172125779,11.34,135.1,135.09,3.3311]
[1726172126271,7.11250313,135.13,135.06,11.34]
[1726172126476,7.11250313,135.13,135.04,4.071]
[1726172126477,11.34,135.1,135.09,3.3311]
[1726172126671,11.34,135.11,135.07,11.34]
[1726172127282,11.34,135.11,135.07,18.74]
[1726172127973,178.17082465,135.2,135.09,11.34]
[1726172128276,11.34,135.14,135.09,11.34]
[1726172128473,11.34,135.14,135.1,7.4]
[1726172128975,11.34,135.14,135.12,3.3304]
[1726172129376,3.75546013,135.15,135.12,3.3304]
[1726172129679,11.34,135.14,135.12,3.3304]
[1726172137086,11.34,135.13,135.12,3.3304]
[1726172141388,7.08526013,135.15,135.12,3.3304]
[1726172141689,11.34,135.13,135.12,3.3304]
[1726172145791,7.10884193,135.16,135.13,3.3302]
[1726172145981,3.77924193,135.16,135.1,11.34]
[1726172146292,3.77924193,135.16,135.09,4.0907]
[1726172146293,11.34,135.15,135.12,11.34]
[1726172146495,11.34,135.17,135.15,3.3296]
[1726172147080,11.34,135.16,135.14,3.3299]
[1726172147282,11.34,135.15,135.14,3.3299]
[1726172147690,11.34,135.15,135.13,3.3301]
[1726172147991,11.34,135.15,135.1,11.34]
[1726172148295,11.34,135.15,135.13,3.3301]
[1726172152093,3.3295,135.16,135.13,3.3301]
[1726172152292,11.34,135.14,135.13,3.3301]
[1726172154686,11.34,135.14,135.12,3.3304]
[1726172156198,3.3293,135.17,135.13,3.3302]
[1726172156496,11.34,135.15,135.13,3.3302]
[1726172156996,11.34,135.15,135.14,3.33]
[1726172158396,3.3291,135.18,135.14,3.33]
[1726172158698,11.34,135.16,135.14,3.33]
[1726172159694,11.34,135.16,135.11,18.74]
[1726172159888,11.34,135.16,135.12,5.0527438]
[1726172160088,11.34,135.16,135.13,5.0527438]
[1726172160290,3.3291,135.18,135.11,18.74]
[1726172160508,11.34,135.15,135.11,18.74]
[1726172160807,11.34,135.15,135.14,3.3298]
[1726172164003,11.34,135.15,135.09,4.0907]
[1726172164306,11.34,135.13,135.09,22.8307]
[1726172164601,3.3293,135.17,135.13,3.3302]
[1726172164810,11.34,135.15,135.13,3.3302]
[1726172165607,155.97082465,135.2,135.12,11.34]
[1726172165903,11.34,135.17,135.13,1.3983]
[1726172166102,11.34,135.17,135.15,3.3297]
[1726172167502,11.34,135.17,135.16,3.3295]
[1726172168895,3.329,135.18,135.15,3.3296]
[1726172169099,11.34,135.17,135.15,3.3296]
[1726172169800,11.34,135.18,135.16,3.3295]
[1726172171007,11.34,135.17,135.16,3.3295]
[1726172176013,11.34,135.17,135.15,3.3296]
[1726172177912,11.34,135.16,135.15,3.3296]
[1726172183820,3.3291,135.18,135.16,3.3295]
[1726172184123,3.71818585,135.23,135.16,11.34]
[1726172184421,11.34,135.22,135.17,11.34]
[1726172184614,3.64056834,135.22,135.17,11.34]
[1726172184824,11.34,135.22,135.2,3.3285]
[1726172185210,517.96305523,135.31,135.2,3.3285]
[1726172185421,11.34,135.23,135.21,3.3283]
[1726172185813,11.34,135.22,135.19,3.3286]
[1726172186022,11.34,135.2,135.19,3.3286]
[1726172186324,11.34,135.2,135.19,9.48679459]
[1726172186518,11.34,135.2,135.19,3.3286]
[1726172193832,14.6681,135.22,135.19,3.3286]
[1726172194037,3.3281,135.22,135.19,3.3286]
[1726172194220,14.6681,135.22,135.19,3.3286]
[1726172195836,14.6681,135.22,135.2,3.3285]
[1726172196032,11.34,135.22,135.2,3.3285]
[1726172197933,14.6681,135.22,135.2,3.3285]
[1726172198231,14.6681,135.22,135.19,3.3287]
[1726172200638,14.6681,135.22,135.2,3.3285]
[1726172201139,11.34,135.21,135.18,2.7295]
[1726172201526,11.34,135.21,135.17,3.329]
[1726172201726,3.3285,135.2,135.18,3.329]
[1726172202840,18.30927062,135.21,135.18,3.329]
[1726172204639,18.30927062,135.21,135.19,3.3288]
[1726172205136,14.6683,135.21,135.16,11.34]
[1726172205333,18.37982707,135.21,135.16,11.34]
[1726172205639,18.37982707,135.21,135.18,3.3288]
[1726172214249,3.3282,135.22,135.18,11.34]
[1726172215847,3.3282,135.22,135.19,3.3286]
[1726172217240,3.3282,135.22,135.2,3.3285]
[1726172221043,3.3282,135.22,135.19,3.3286]
[1726172221940,3.3283,135.21,135.18,3.3289]
[1726172224351,3.3281,135.22,135.18,11.34]
[1726172224649,3.3281,135.22,135.19,11.34]
[1726172225846,3.3281,135.22,135.2,3.3284]
[1726172226045,3.3279,135.23,135.19,11.34]
[1726172226454,3.3279,135.23,135.21,3.3282]
[1726172226750,11.34,135.24,135.21,3.3282]
[1726172227154,14.6677,135.24,135.21,3.3282]
[1726172227748,3.3278,135.23,135.21,3.3282]
[1726172228647,3.3278,135.23,135.2,14.6684]
[1726172229439,3.3278,135.23,135.2,3.3284]
[1726172229634,3.3281,135.22,135.2,3.3284]
[1726172229950,3.3281,135.22,135.19,3.3286]
[1726172230148,3.3281,135.22,135.19,14.6686]
[1726172234354,3.3281,135.22,135.2,3.3285]
[1726172235747,3.3281,135.22,135.19,14.6687]
[1726172236557,3.3281,135.22,135.19,3.3287]
[1726172236858,3.3283,135.21,135.19,3.3287]
[1726172237062,11.34,135.2,135.16,3.3293]
[1726172237357,11.34,135.2,135.17,6.15786593]
[1726172237560,14.6687,135.2,135.16,11.34]
[1726172237750,14.6687,135.2,135.17,6.15794427]
[1726172237952,14.6687,135.2,135.17,3.3292]
[1726172238154,3.3283,135.21,135.17,11.34]
[1726172238356,3.3283,135.21,135.18,6.15788387]
[1726172238560,3.3283,135.21,135.18,3.3288]
[1726172239057,11.34,135.22,135.18,3.3288]
[1726172239462,11.34,135.21,135.17,3.3292]
[1726172239669,11.34,135.21,135.18,6.15784632]
[1726172239875,11.34,135.21,135.17,3.3292]
[1726172240177,3.3287,135.2,135.18,6.15786735]
[1726172240358,11.34,135.21,135.17,3.3292]
[1726172240563,11.34,135.21,135.18,6.15789903]
[1726172240764,3.3286,135.2,135.17,3.3292]
[1726172240965,3.3286,135.2,135.18,6.15792106]
[1726172241263,3.3286,135.2,135.17,3.3292]
[1726172241464,3.3286,135.2,135.18,6.15792106]
[1726172241661,3.3286,135.2,135.17,3.3292]
[1726172241859,3.3286,135.2,135.18,6.15785494]
[1726172242058,3.3286,135.2,135.17,3.3292]
[1726172242373,3.3286,135.2,135.18,6.15785494]
[1726172242568,3.3286,135.2,135.17,3.3292]
[1726172242869,3.3286,135.2,135.18,6.15788662]
[1726172243059,3.3286,135.2,135.17,3.3292]
[1726172243263,3.3286,135.2,135.18,6.15788662]
[1726172243461,3.3286,135.2,135.17,3.3292]
[1726172243674,3.3286,135.2,135.18,6.15788938]
[1726172243971,3.3286,135.2,135.17,3.3292]
[1726172244173,3.3286,135.2,135.18,6.15788938]
[1726172244370,3.3286,135.2,135.17,3.3292]
[1726172244574,3.3284,135.21,135.18,9.48688662]
[1726172244873,3.3284,135.21,135.18,3.329]
[1726172245961,159.58287027,135.25,135.19,6.1578205]
[1726172246161,11.34,135.23,135.17,11.34]
[1726172246464,11.34,135.23,135.18,6.15776779]
[1726172246773,11.34,135.23,135.19,6.15776779]
[1726172246972,11.34,135.23,135.17,11.34]
[1726172247173,3.3283,135.21,135.18,15.66258073]
[1726172247364,3.3283,135.21,135.19,6.15760532]
[1726172247566,3.3283,135.21,135.18,3.3289]
[1726172247765,3.3283,135.21,135.19,6.15756707]
[1726172247966,3.3283,135.21,135.18,3.3289]
[1726172248174,3.3283,135.21,135.19,6.15756707]
[1726172248478,3.3283,135.21,135.18,3.3289]
[1726172248775,3.3283,135.21,135.19,6.15759875]
[1726172248974,3.3283,135.21,135.18,3.3289]
[1726172249379,3.3283,135.21,135.19,6.15759875]
[1726172249570,3.3283,135.21,135.18,3.3289]
[1726172249875,3.3283,135.21,135.19,6.15760938]
[1726172250080,3.3283,135.21,135.18,3.3289]
[1726172250377,3.3283,135.21,135.19,6.15760938]
[1726172251380,3.3283,135.21,135.18,14.6689]
[1726172257679,3.3283,135.21,135.19,5.05093749]
[1726172257884,3.3283,135.21,135.18,14.6689]
[1726172258085,3.3283,135.21,135.19,5.05093749]
[1726172258284,3.3283,135.21,135.18,14.6689]
[1726172258482,3.3283,135.21,135.19,5.05093749]
[1726172258682,3.3283,135.21,135.18,14.6689]
[1726172258884,3.3283,135.21,135.19,5.05093749]
[1726172259086,3.3283,135.21,135.18,14.6689]
[1726172259285,3.3283,135.21,135.19,5.05093749]
[1726172259488,3.3283,135.21,135.19,6.15738036]
[1726172259685,3.3283,135.21,135.2,6.15738036]
[1726172261188,3.3283,135.21,135.18,3.3289]
[1726172261379,3.3283,135.21,135.2,6.15734869]
[1726172261586,3.3283,135.21,135.19,6.15734869]
[1726172261975,3.3283,135.21,135.2,6.15734869]
[1726172264889,3.3282,135.22,135.19,3.3288]
[1726172265093,3.3282,135.22,135.2,6.15732763]
[1726172265296,3.3282,135.22,135.21,6.15732763]
[1726172268396,3.3282,135.22,135.19,3.3288]
[1726172268691,3.3282,135.22,135.2,6.15722914]
[1726172268880,3.3282,135.22,135.21,6.15722914]
[1726172277698,3.3282,135.22,135.2,3.3285]
[1726172278793,162.91027027,135.25,135.22,3.3278]
[1726172278998,162.91027027,135.25,135.22,14.6678]
[1726172278999,159.23564081,135.25,135.22,14.6678]
[1726172279401,162.9068453,135.25,135.22,14.6678]
[1726172279998,159.23564081,135.25,135.22,14.6678]
[1726172280197,3.3275,135.24,135.22,14.6678]
[1726172280995,159.23564081,135.25,135.22,14.6678]
[1726172281494,170.57564081,135.25,135.22,3.3278]
[1726172284891,11.34,135.24,135.22,3.3278]
[1726172285692,159.23564081,135.25,135.22,3.3278]
[1726172285997,170.57564081,135.25,135.22,3.3278]
[1726172288504,11.34,135.24,135.22,3.3278]
[1726172290302,14.6676,135.24,135.22,3.3278]
[1726172290909,11.34,135.24,135.22,3.3278]
[1726172294799,159.23564081,135.25,135.22,3.3278]
[1726172295000,11.34,135.24,135.22,3.3278]
[1726172295208,159.23564081,135.25,135.22,3.3278]
[1726172295404,11.34,135.24,135.22,3.3278]
[1726172303825,3.3276,135.24,135.22,3.3278]
[1726172304027,11.34,135.23,135.21,3.3282]
[1726172305323,3.3276,135.24,135.21,3.3282]
[1726172305324,14.6676,135.24,135.21,3.3282]
[1726172308429,14.6676,135.24,135.22,3.328]
[1726172313728,14.6676,135.24,135.19,11.34]
[1726172313729,11.34,135.23,135.15,3.69460679]
[1726172313934,11.34,135.2,135.16,17.22992097]
[1726172314137,155.90824081,135.25,135.17,17.22992097]
[1726172314434,11.34,135.21,135.17,17.22992097]
[1726172314740,11.34,135.21,135.18,2.7252]
[1726172315240,3.3279,135.23,135.2,3.3285]
[1726172315429,155.90824081,135.25,135.19,11.34]
[1726172315636,11.34,135.23,135.2,3.3285]
[1726172316842,14.6678,135.23,135.2,3.3285]
[1726172323737,3.3278,135.23,135.2,3.3285]
[1726172324131,3.3277,135.24,135.21,3.3281]
[1726172324329,14.6677,135.24,135.21,3.3281]
[1726172325844,14.6677,135.24,135.18,14.0652]
[1726172325845,3.3274,135.25,135.22,3.3279]
[1726172326143,410.64325017,135.34,135.21,11.34]
[1726172326337,11.34,135.27,135.22,11.34]
[1726172326536,3.3272,135.26,135.23,3.3277]
[1726172331153,162.92818824,135.27,135.24,3.3274]
[1726172331341,11.34,135.26,135.24,3.3274]
[1726172332850,14.6671,135.26,135.24,3.3274]
[1726172333151,403.99295017,135.34,135.25,11.34]
[1726172333344,14.6663,135.3,135.25,11.34]
[1726172333544,18.34741546,135.3,135.25,11.34]
[1726172333750,15.02111546,135.3,135.26,3.3269]
[1726172333952,3.3264,135.29,135.26,3.3269]
[1726172334251,3.3264,135.29,135.24,2.7031]
[1726172334252,403.99295017,135.34,135.27,14.6667]
[1726172334443,11.34,135.3,135.27,14.6667]
[1726172334648,11.34,135.3,135.27,3.3267]
[1726172334950,14.6662,135.3,135.27,3.3267]
[1726172335349,3.3262,135.3,135.27,3.3267]
[1726172335553,14.6662,135.3,135.27,3.3267]
[1726172335749,3.3262,135.3,135.28,3.3265]
[1726172335946,11.34,135.3,135.28,3.3265]
[1726172337152,3.3259,135.31,135.28,3.3265]
[1726172337368,14.6659,135.31,135.28,3.3265]
[1726172338058,3.3259,135.31,135.28,3.3265]
[1726172338261,11.34,135.3,135.28,3.3265]
[1726172339955,11.34,135.29,135.27,3.3267]
[1726172340159,11.34,135.29,135.24,4.1018]
[1726172340355,14.6664,135.29,135.26,3.3269]
[1726172340565,159.46813167,135.34,135.26,3.3269]
[1726172340758,159.46813167,135.34,135.24,4.1018]
[1726172340955,3.66264882,135.34,135.24,4.1018]
[1726172341160,28.8483,135.38,135.24,4.1018]
[1726172341365,11.34,135.28,135.24,4.1018]
[1726172341553,11.34,135.27,135.25,3.3272]
[1726172342660,3.3266,135.28,135.25,3.3272]
[1726172342862,11.34,135.27,135.25,3.3272]
[1726172343261,3.3266,135.28,135.25,3.3272]
[1726172343463,11.34,135.27,135.25,3.3272]
[1726172343663,3.3266,135.28,135.25,3.3272]
[1726172343865,11.34,135.27,135.25,3.3272]
[1726172344367,3.3266,135.28,135.25,3.3272]
[1726172344660,14.6666,135.28,135.25,3.3272]
[1726172348063,3.3266,135.28,135.25,3.3272]
[1726172348270,14.6666,135.28,135.25,3.3272]
[1726172349473,14.6666,135.28,135.24,15.4418]
[1726172349474,14.6666,135.28,135.26,3.327]
[1726172351577,3.3266,135.28,135.26,3.327]
[1726172351875,3.3264,135.29,135.26,3.327]
[1726172352071,14.6664,135.29,135.26,3.327]
[1726172352680,14.6664,135.29,135.27,3.3268]
[1726172352977,11.34,135.29,135.27,3.3268]
[1726172356573,14.6663,135.29,135.27,3.3268]
[1726172357981,11.34,135.28,135.26,3.3269]
[1726172359287,14.6668,135.27,135.25,3.3273]
[1726172359475,3.3268,135.27,135.25,3.3273]
[1726172359781,11.34,135.26,135.25,3.3273]
[1726172361896,3.68455948,135.3,135.14,6.66]
[1726172362091,11.34,135.25,135.2,28.78753537]
[1726172362291,11.34,135.25,135.21,11.14748115]
[1726172362591,11.34,135.25,135.22,3.3278]
[1726172366795,14.6673,135.25,135.22,3.3278]
[1726172366995,3.62704511,135.28,135.23,3.3277]
[1726172367194,11.34,135.26,135.23,3.3277]
[1726172367593,14.6672,135.26,135.23,3.3277]
[1726172372411,14.6672,135.26,135.24,3.3275]
[1726172374005,11.34,135.26,135.24,3.3275]
[1726172374601,3.3269,135.27,135.24,3.3275]
[1726172374806,3.70719621,135.28,135.25,11.34]
[1726172374807,3.3266,135.28,135.25,11.34]
[1726172374999,11.34,135.29,135.25,11.34]
[1726172375400,14.6665,135.29,135.26,3.327]
[1726172375807,14.6665,135.29,135.26,11.34]
[1726172376897,14.6665,135.29,135.27,3.3268]
[1726172380111,11.34,135.29,135.27,3.3268]
[1726172380905,3.3262,135.3,135.27,3.3268]
[1726172381204,14.6662,135.3,135.28,3.3265]
[1726172382306,3.3262,135.3,135.28,3.3265]
[1726172388417,11.34,135.29,135.28,3.3265]
[1726172388616,11.34,135.29,135.27,3.3267]
[1726172392221,14.6663,135.29,135.27,3.3267]
[1726172396311,3.3263,135.29,135.27,3.3267]
[1726172398622,14.6663,135.29,135.27,3.3267]
[1726172400222,14.6663,135.29,135.28,6.314331]
[1726172403827,14.6663,135.29,135.28,6.31434082]
[1726172406128,14.6663,135.29,135.27,3.3267]
[1726172406320,14.6663,135.29,135.28,6.3142339]
[1726172413231,14.6663,135.29,135.26,3.3269]
[1726172413433,14.6663,135.29,135.27,6.31422146]
[1726172413628,14.6663,135.29,135.28,6.31422146]
[1726172414636,14.6663,135.29,135.28,6.31425375]
[1726172416147,3.3263,135.29,135.28,6.31425375]
[1726172416639,3.3263,135.29,135.27,3.3268]
[1726172416838,3.3263,135.29,135.28,6.31421592]
[1726172423448,3.3263,135.29,135.25,1.3035]
[1726172423739,3.77615913,135.32,135.26,6.31454419]
[1726172423740,14.6669,135.27,135.26,6.31454419]
[1726172423940,155.81681557,135.33,135.26,6.31454419]
[1726172424148,14.6665,135.29,135.27,6.31454419]
[1726172424645,14.6665,135.29,135.28,6.23487773]
[1726172426043,3.3266,135.28,135.25,4.6307]
[1726172426340,3.3266,135.28,135.26,6.23490946]
[1726172426546,3.3266,135.28,135.27,6.23490946]
[1726172426935,3.3266,135.28,135.25,4.6307]
[1726172427139,3.3266,135.28,135.27,6.23487773]
[1726172427533,14.6666,135.28,135.27,6.23487773]
[1726172427748,14.6666,135.28,135.26,6.23487773]
[1726172428047,14.6666,135.28,135.27,6.23487773]
[1726172428638,3.327,135.26,135.24,1.4083]
[1726172428937,11.34,135.26,135.25,6.23569536]
[1726172429839,14.667,135.26,135.25,6.23569536]
[1726172430051,3.327,135.26,135.25,6.23569536]
[1726172430350,3.327,135.26,135.22,14.6679]
[1726172430541,3.327,135.26,135.23,6.23609252]
[1726172430738,3.327,135.26,135.24,6.23609252]